bitfinex/quotes_BTCUSD_20230114
["timestamp","ask_amount","ask_price","bid_price","bid_amount"]
[1673718673657,0.2849471,20865.0,20863.0,0.64808215]
[1673718673855,0.2999471,20865.0,20864.0,0.319771]
[1673718674131,0.2999471,20865.0,20863.0,0.64808215]
[1673718674132,0.015,20865.0,20863.0,0.64808215]
[1673718674416,0.015,20865.0,20863.0,0.87893637]
[1673718674656,0.00864873,20866.0,20864.0,0.319771]
[1673718674927,0.015,20865.0,20863.0,0.82293637]
[1673718675163,0.015,20865.0,20864.0,0.27953775]
[1673718675422,0.0150863,20865.0,20864.0,0.27953775]
[1673718675678,0.25551821,20866.0,20864.0,0.59930875]
[1673718675932,0.004,20865.0,20864.0,0.27953775]
[1673718676204,0.25551821,20866.0,20864.0,0.27953775]
[1673718676455,0.067,20865.0,20864.0,0.28653775]
[1673718676715,0.25551821,20866.0,20864.0,0.27953775]
[1673718676973,0.015,20865.0,20864.0,0.27953775]
[1673718677219,0.25560451,20866.0,20864.0,0.27953775]
[1673718677486,0.367,20865.0,20864.0,0.007]
[1673718677743,1.91754369,20865.0,20864.0,0.007]
[1673718678000,1.91754369,20865.0,20864.0,0.00601815]
[1673718678001,2.1355783,20865.0,20864.0,0.00601815]
[1673718678266,2.09210663,20865.0,20858.0,0.2237763]
[1673718678527,0.1148,20862.0,20858.0,0.2237763]
[1673718678844,0.479368,20861.0,20858.0,0.2237763]
[1673718679058,1.90050169,20860.0,20856.0,0.2433783]
[1673718679318,0.479413,20859.0,20854.0,0.00180206]
[1673718679610,0.479413,20859.0,20854.0,0.37545086]
[1673718679611,0.3,20858.0,20854.0,0.37545086]
[1673718679864,0.3,20858.0,20854.0,0.00180206]
[1673718680391,8.63e-05,20857.0,20854.0,0.00180206]
[1673718680653,0.59208799,20857.0,20854.0,0.03080206]
[1673718680916,0.779478,20856.0,20854.0,0.02529756]
[1673718681189,1.07607514,20856.0,20853.0,0.01193382]
[1673718681723,1.62562169,20855.0,20853.0,0.01193382]
[1673718681982,1.259048,20854.0,20853.0,0.01193382]
[1673718682258,1.52374422,20854.0,20853.0,0.01193382]
[1673718682507,1.259048,20854.0,20853.0,0.01193382]
[1673718682785,1.259048,20854.0,20853.0,0.03793382]
[1673718682786,1.2591343,20854.0,20853.0,0.03793382]
[1673718683037,1.79234876,20854.0,20849.0,0.00330209]
[1673718683298,1.79234876,20854.0,20853.0,0.026]
[1673718683299,2.30449652,20854.0,20853.0,0.026]
[1673718683588,1.87263599,20854.0,20853.0,0.026]
[1673718684103,1.87263599,20854.0,20849.0,0.00330209]
[1673718684104,1.85963599,20854.0,20849.0,0.00330209]
[1673718684332,0.4148,20853.0,20849.0,0.00330209]
[1673718684585,0.959148,20852.0,20849.0,0.00330209]
[1673718684840,8.63e-05,20851.0,20849.0,0.00330209]
[1673718685103,0.4796983,20851.0,20849.0,0.00330209]
[1673718686151,0.4856983,20851.0,20849.0,0.00330209]
[1673718687168,0.28505871,20850.0,20849.0,0.00330209]
[1673718687433,0.76467471,20850.0,20849.0,0.00330209]
[1673718687979,0.76467471,20850.0,20849.0,0.01774389]
[1673718688772,0.77067471,20850.0,20849.0,0.01774389]
[1673718690314,1.55029071,20850.0,20849.0,0.01774389]
[1673718690592,1.25029071,20850.0,20849.0,0.01774389]
[1673718691568,1.25037701,20850.0,20849.0,0.01774389]
[1673718693374,0.77067471,20850.0,20849.0,0.01774389]
[1673718694727,1.25944597,20850.0,20849.0,0.01774389]
[1673718694983,1.51560508,20850.0,20849.0,0.01774389]
[1673718695774,1.21560508,20850.0,20849.0,0.01774389]
[1673718697626,0.9653183,20850.0,20849.0,0.01774389]
[1673718698703,2.19699784,20850.0,20849.0,0.01774389]
[1673718698962,1.71738184,20850.0,20849.0,0.01774389]
[1673718699498,0.23776584,20850.0,20849.0,0.01774389]
[1673718700093,0.22092483,20849.0,20847.0,0.27682341]
[1673718700313,0.22092483,20849.0,20847.0,0.00905565]
[1673718701444,0.0837263,20848.0,20847.0,0.00905565]
[1673718701672,0.5633883,20848.0,20847.0,0.00905565]
[1673718702100,0.08364,20848.0,20847.0,0.00905565]
[1673718702559,0.09964,20848.0,20847.0,0.00905565]
[1673718702779,0.36514037,20848.0,20847.0,0.00905565]
[1673718704776,0.36514037,20848.0,20845.0,1.8981193]
[1673718705226,0.36514037,20848.0,20845.0,1.4183903]
[1673718705448,0.2471124,20847.0,20845.0,1.4183903]
[1673718705654,0.2471987,20847.0,20845.0,1.4183903]
[1673718705898,0.2471124,20847.0,20845.0,1.4183903]
[1673718706162,0.2471124,20847.0,20845.0,1.16692032]
[1673718706563,0.2471987,20847.0,20846.0,0.319771]
[1673718706775,0.2471124,20847.0,20845.0,1.16692032]
[1673718707460,0.2611124,20847.0,20846.0,0.319771]
[1673718707676,0.2611124,20847.0,20845.0,1.16692032]
[1673718707896,0.014,20847.0,20845.0,1.46644145]
[1673718708117,0.014,20847.0,20846.0,0.57387536]
[1673718708330,0.08364,20847.0,20846.0,0.319771]
[1673718708548,0.37369542,20847.0,20845.0,1.16692032]
[1673718709065,0.29005542,20847.0,20846.0,0.319771]
[1673718709268,0.015,20847.0,20846.0,0.30651676]
[1673718709492,0.015,20847.0,20846.0,1.08739453]
[1673718709945,0.479616,20851.0,20846.0,1.08739453]
[1673718709946,0.21175914,20849.0,20846.0,0.60768653]
[1673718710185,0.08364,20847.0,20846.0,0.30116977]
[1673718710410,0.08364,20847.0,20846.0,0.62108177]
[1673718710621,0.09864,20847.0,20846.0,0.62108177]
[1673718710858,0.08364,20847.0,20846.0,0.62108177]
[1673718711098,8.63e-05,20847.0,20846.0,0.62108177]
[1673718711319,0.0837263,20847.0,20846.0,0.62108177]
[1673718711540,0.0987263,20847.0,20846.0,0.62108177]
[1673718711772,0.015,20847.0,20846.0,0.62108177]
[1673718713137,0.015,20847.0,20846.0,1.10078977]
[1673718714737,0.015,20847.0,20846.0,0.62108177]
[1673718714971,0.0150863,20847.0,20846.0,0.62108177]
[1673718715435,0.015,20847.0,20846.0,0.62108177]
[1673718716776,0.015,20847.0,20846.0,2.79666336]
[1673718717222,0.015,20847.0,20846.0,2.65468336]
[1673718717454,0.015,20847.0,20846.0,2.17497536]
[1673718719272,0.0150863,20847.0,20846.0,1.69526736]
[1673718719724,0.09864,20847.0,20846.0,1.69526736]
[1673718720229,0.0987263,20847.0,20846.0,1.58046736]
[1673718720683,0.0987263,20847.0,20846.0,1.27929759]
[1673718720916,0.37173904,20847.0,20846.0,1.27929759]
[1673718721577,0.37165274,20847.0,20846.0,1.27929759]
[1673718722289,0.28801274,20847.0,20846.0,1.27929759]
[1673718723842,1.6316299,20847.0,20842.0,1.73843215]
[1673718724116,0.14373376,20846.0,20843.0,0.95962688]
[1673718724348,0.62346476,20845.0,20843.0,0.95962688]
[1673718724580,0.44373376,20844.0,20843.0,0.95462688]
[1673718724797,1.61763222,20844.0,20842.0,0.01336979]
[1673718725042,0.08364,20843.0,20842.0,0.01336979]
[1673718725408,0.08364,20843.0,20840.0,0.01345256]
[1673718725409,0.1,20842.0,20840.0,0.01345256]
[1673718725680,1.177558,20841.0,20840.0,0.01345256]
[1673718725949,1.1776443,20841.0,20840.0,0.01345256]
[1673718726210,1.4776443,20841.0,20840.0,0.01345256]
[1673718726459,1.4776443,20841.0,20840.0,5.256e-05]
[1673718726460,1.95484599,20841.0,20840.0,5.256e-05]
[1673718726720,2.10684814,20841.0,20840.0,5.256e-05]
[1673718726975,0.35,20843.0,20840.0,0.30557851]
[1673718727241,0.35,20843.0,20840.0,1.1914654]
[1673718727242,0.135,20841.0,20840.0,1.1914654]
[1673718727518,0.135,20841.0,20840.0,1.5113774]
[1673718727808,0.135,20841.0,20840.0,0.31996456]
[1673718728070,1.50026054,20845.0,20839.0,0.01345256]
[1673718728071,0.26642961,20840.0,20839.0,0.01345256]
[1673718729413,0.26642961,20840.0,20839.0,0.01745256]
[1673718729414,0.34842961,20840.0,20839.0,0.01745256]
[1673718729670,0.26642961,20840.0,20839.0,0.01345256]
[1673718729960,0.40142961,20840.0,20839.0,0.01645256]
[1673718731585,0.40151591,20840.0,20839.0,0.01645256]
[1673718732381,0.40142961,20840.0,20839.0,0.01645256]
[1673718732640,0.40151591,20840.0,20839.0,0.01645256]
[1673718732902,0.135,20840.0,20839.0,0.01645256]
[1673718733153,0.135,20840.0,20839.0,0.6693069]
[1673718733428,0.135,20840.0,20839.0,1.1491759]
[1673718733692,0.135,20840.0,20839.0,1.6290449]
[1673718734737,0.22130266,20843.0,20839.0,1.6260449]
[1673718735010,0.22130266,20843.0,20840.0,0.190021]
[1673718735288,0.22130266,20843.0,20840.0,0.479846]
[1673718735289,8.63e-05,20842.0,20840.0,0.479846]
[1673718735557,0.22130266,20843.0,20840.0,0.479846]
[1673718736046,0.12213027,20842.0,20830.0,0.01415417]
[1673718736052,0.12213027,20842.0,20817.0,5.05181759]
[1673718736053,0.26284664,20841.0,20816.0,0.9665719]
[1673718736316,0.26284664,20841.0,20826.0,0.21445453]
[1673718736317,0.85014465,20834.0,20826.0,0.21445453]
[1673718736651,0.85014465,20834.0,20821.0,0.63331102]
[1673718736652,1.92058,20827.0,20821.0,0.21458308]
[1673718736859,1.92058,20827.0,20810.0,0.8184262]
[1673718736860,0.21445453,20824.0,20810.0,0.8184262]
[1673718737134,0.38388243,20822.0,20811.0,0.59200169]
[1673718737389,0.14270313,20816.0,20811.0,0.47720169]
[1673718737667,0.14270313,20816.0,20810.0,0.00360407]
[1673718737668,0.488934,20815.0,20810.0,0.00360407]
[1673718737950,0.114,20811.0,20810.0,0.00360407]
[1673718738200,0.1148,20814.0,20810.0,0.80075476]
[1673718738201,0.75696409,20814.0,20810.0,0.80075476]
[1673718738499,0.47155783,20814.0,20811.0,0.29743792]
[1673718738753,0.74386869,20815.0,20812.0,0.79711569]
[1673718738754,0.1,20815.0,20812.0,0.79711569]
[1673718739029,0.079,20815.0,20812.0,0.47720169]
[1673718739536,0.079,20814.0,20812.0,0.47720169]
[1673718740000,0.1148,20815.0,20812.0,0.47720169]
[1673718740001,0.2148,20815.0,20812.0,0.47720169]
[1673718740810,0.2148,20815.0,20813.0,0.47720169]
[1673718740811,0.11999,20815.0,20813.0,0.47720169]
[1673718741093,0.00019,20815.0,20813.0,0.47720169]
[1673718741347,0.96090114,20814.0,20813.0,0.47720169]
[1673718741613,0.07919,20815.0,20813.0,0.47720169]
[1673718741890,0.11419,20815.0,20813.0,0.47720169]
[1673718742146,0.11419,20815.0,20810.0,0.00360407]
[1673718742147,1.29834736,20814.0,20812.0,0.004]
[1673718742400,1.10477282,20812.0,20811.0,0.27844619]
[1673718742664,1.13360282,20812.0,20810.0,0.00360407]
[1673718742937,2.06572018,20812.0,20811.0,0.21341875]
[1673718743218,2.28052018,20812.0,20811.0,0.26624299]
[1673718743492,2.28052018,20812.0,20805.0,1.1425877]
[1673718743493,0.51692727,20810.0,20805.0,0.0188877]
[1673718743777,0.51692727,20810.0,20806.0,0.47720169]
[1673718744032,0.51692727,20810.0,20807.0,0.52681063]
[1673718744301,0.51692727,20810.0,20808.0,0.47720169]
[1673718744588,0.51711727,20810.0,20808.0,0.47720169]
[1673718744848,0.53211727,20810.0,20809.0,0.319949]
[1673718745148,0.1626963,20808.0,20807.0,0.04960894]
[1673718745403,0.1626963,20808.0,20807.0,0.24045394]
[1673718745961,0.1626963,20808.0,20807.0,0.190845]
[1673718746702,0.1626963,20808.0,20807.0,0.185845]
[1673718747271,0.1786963,20808.0,20807.0,0.499845]
[1673718747535,0.1786963,20808.0,20807.0,0.199845]
[1673718747809,0.82075071,20806.0,20805.0,0.6139237]
[1673718748340,0.82075071,20806.0,20805.0,0.0188877]
[1673718748612,0.82075071,20806.0,20805.0,0.30191115]
[1673718748872,0.82075071,20806.0,20805.0,0.24781563]
[1673718749140,0.82075071,20806.0,20805.0,0.0188877]
[1673718749404,0.82075071,20806.0,20805.0,0.29513409]
[1673718749663,0.82075071,20806.0,20805.0,0.0188877]
[1673718750510,0.83575071,20806.0,20805.0,0.23389086]
[1673718750778,0.82075071,20806.0,20805.0,0.09034519]
[1673718751035,0.83675071,20806.0,20805.0,0.09234519]
[1673718751302,0.016,20806.0,20805.0,0.20634519]
[1673718751563,0.016,20806.0,20805.0,0.68199819]
[1673718752042,0.016,20806.0,20805.0,0.98199819]
[1673718752044,0.35,20811.0,20805.0,1.64992583]
[1673718752315,0.35,20811.0,20808.0,0.1148]
[1673718752584,0.617441,20812.0,20809.0,0.961122]
[1673718752836,0.24602836,20810.0,20809.0,0.19072595]
[1673718753094,0.21871245,20811.0,20809.0,0.22720053]
[1673718753380,0.28090024,20811.0,20809.0,0.22720053]
[1673718753631,0.28290024,20811.0,20809.0,0.29797898]
[1673718753899,0.28090024,20811.0,20809.0,0.29797898]
[1673718754163,0.03,20810.0,20809.0,0.30697898]
[1673718754473,0.28090024,20811.0,20809.0,0.29797898]
[1673718754729,0.03,20811.0,20810.0,0.0778562]
[1673718754989,0.35,20812.0,20810.0,0.0778562]
[1673718755254,0.35,20812.0,20809.0,0.63181958]
[1673718755503,0.23193125,20812.0,20810.0,0.11124026]
[1673718756012,0.23193125,20812.0,20810.0,0.35438387]
[1673718756262,0.23193125,20812.0,20809.0,0.4491908]
[1673718756525,0.053,20811.0,20810.0,0.10397738]
[1673718756757,0.58193125,20812.0,20810.0,0.57351538]
[1673718757033,0.63493125,20812.0,20810.0,0.58451538]
[1673718757261,0.58193125,20812.0,20810.0,0.57351538]
[1673718757519,0.63493125,20812.0,20811.0,0.13106571]
[1673718757791,0.63493125,20812.0,20810.0,0.480538]
[1673718757792,0.35,20812.0,20810.0,0.480538]
[1673718758031,0.403,20812.0,20811.0,1.0090838]
[1673718758343,0.403,20812.0,20811.0,1.26852476]
[1673718758537,0.053,20812.0,20811.0,1.26852476]
[1673718759063,0.63342028,20816.0,20811.0,1.28882224]
[1673718759304,0.63342028,20816.0,20811.0,1.47954819]
[1673718759305,0.2552636,20815.0,20811.0,1.47954819]
[1673718759574,0.004,20812.0,20811.0,1.47954819]
[1673718759809,0.23083511,20814.0,20811.0,1.28882224]
[1673718760059,0.23083511,20814.0,20811.0,1.37776844]
[1673718760337,0.35,20813.0,20811.0,1.24076844]
[1673718760589,0.004,20812.0,20811.0,1.37776844]
[1673718760837,0.004,20812.0,20811.0,1.09803]
[1673718761089,0.35,20813.0,20811.0,1.40158833]
[1673718761345,0.35,20813.0,20811.0,1.46658833]
[1673718761649,0.35,20813.0,20811.0,1.30873153]
[1673718762198,0.35,20813.0,20811.0,1.02603]
[1673718762370,0.35,20813.0,20811.0,1.23763594]
[1673718762866,0.35,20813.0,20811.0,0.96103]
[1673718763120,0.353,20813.0,20811.0,1.25163416]
[1673718763375,0.003,20813.0,20812.0,0.41571789]
[1673718763624,0.003,20813.0,20812.0,1.37670189]
[1673718763872,0.003,20813.0,20812.0,1.20348467]
[1673718764667,0.35,20813.0,20812.0,1.20348467]
[1673718765649,0.355,20813.0,20812.0,1.20348467]
[1673718766403,0.005,20813.0,20812.0,1.20348467]
[1673718766651,0.005,20813.0,20812.0,1.42832615]
[1673718767430,0.345,20814.0,20813.0,0.23342836]
[1673718767703,0.345,20814.0,20813.0,0.71389636]
[1673718767956,0.345,20814.0,20813.0,1.19436436]
[1673718768206,0.345,20814.0,20813.0,0.66959701]
[1673718768464,0.96093929,20814.0,20813.0,0.66959701]
[1673718768730,1.00593929,20814.0,20813.0,0.67359701]
[1673718769271,1.00593929,20814.0,20813.0,0.96481076]
[1673718769492,0.395,20814.0,20813.0,1.44527876]
[1673718770258,1.35594413,20814.0,20813.0,0.67359701]
[1673718770508,1.35594413,20814.0,20813.0,0.004]
[1673718771540,1.35594413,20814.0,20810.0,0.480521]
[1673718771541,0.008,20812.0,20810.0,0.480521]
[1673718771814,0.96094413,20811.0,20810.0,0.76271383]
[1673718772367,0.96094413,20811.0,20810.0,1.24325183]
[1673718772597,0.008,20812.0,20810.0,1.49545183]
[1673718772868,0.96088991,20811.0,20810.0,1.35745183]
[1673718773141,0.96488991,20811.0,20810.0,1.79545183]
[1673718773661,0.96488991,20811.0,20810.0,2.02182964]
[1673718773915,0.96488991,20811.0,20810.0,1.79545183]
[1673718774173,0.96088991,20811.0,20810.0,1.65745183]
[1673718774446,0.012,20812.0,20811.0,0.26185488]
[1673718774697,0.49141084,20817.0,20812.0,0.1]
[1673718774958,0.35,20817.0,20813.0,2.76710389]
[1673718775209,0.35,20817.0,20814.0,0.66792764]
[1673718775472,0.35413099,20819.0,20817.0,0.1148]
[1673718775748,0.28913481,20820.0,20818.0,1.28919195]
[1673718775749,0.35785954,20820.0,20818.0,1.28919195]
[1673718775992,0.14513939,20820.0,20819.0,0.19072595]
[1673718776261,0.14513939,20820.0,20819.0,0.43208893]
[1673718776785,0.14513939,20820.0,20819.0,0.54618893]
[1673718776786,0.00372855,20820.0,20819.0,0.54618893]
[1673718777816,0.00372855,20820.0,20819.0,1.02651893]
[1673718778355,0.00372855,20820.0,20819.0,1.16751893]
[1673718778615,0.45713052,20820.0,20819.0,0.141]
[1673718778882,0.80468816,20818.0,20817.0,0.76595192]
[1673718779687,0.80468816,20818.0,20817.0,0.75595192]
[1673718779938,0.80468816,20818.0,20817.0,0.93910781]
[1673718780200,0.80468816,20818.0,20815.0,0.480422]
[1673718780201,0.82268816,20818.0,20815.0,0.480422]
[1673718780453,0.964099,20818.0,20814.0,0.743011]
[1673718780735,1.062099,20818.0,20814.0,0.99378232]
[1673718781001,0.14141084,20816.0,20810.0,0.71405851]
[1673718781263,0.14331729,20814.0,20810.0,0.71405851]
[1673718781545,0.14331729,20814.0,20809.0,0.480549]
[1673718781546,0.2866342,20814.0,20809.0,0.480549]
[1673718781794,0.32140949,20813.0,20810.0,0.32969217]
[1673718782047,0.22140949,20813.0,20811.0,0.22704125]
[1673718782334,0.2866342,20814.0,20811.0,0.22704125]
[1673718782563,0.56126968,20814.0,20811.0,0.22704125]
[1673718782869,0.26702043,20813.0,20808.0,0.1148]
[1673718783086,0.26702043,20813.0,20810.0,0.045]
[1673718783087,0.1148,20812.0,20810.0,0.045]
[1673718783350,0.1148,20812.0,20808.0,0.23061881]
[1673718783351,0.80802015,20812.0,20808.0,0.23061881]
[1673718783615,0.24333981,20811.0,20808.0,0.23061881]
[1673718783860,0.45605996,20811.0,20808.0,0.23061881]
[1673718784162,0.24333981,20811.0,20808.0,0.044]
[1673718784383,0.23732399,20810.0,20808.0,0.044]
[1673718784640,0.33732399,20810.0,20808.0,0.044]
[1673718784892,0.33732399,20810.0,20806.0,0.24246289]
[1673718784893,1.17392795,20810.0,20806.0,0.24246289]
[1673718785401,0.84164361,20810.0,20807.0,0.2571394]
[1673718785662,0.1,20809.0,20805.0,0.0138877]
[1673718785927,0.1,20809.0,20806.0,0.27130438]
[1673718786190,0.580566,20809.0,20806.0,0.31530438]
[1673718786451,0.580566,20809.0,20806.0,0.27130438]
[1673718786718,0.580566,20809.0,20805.0,0.0588877]
[1673718786719,0.14333232,20808.0,20805.0,0.0588877]
[1673718786969,0.39581008,20808.0,20805.0,0.30689776]
[1673718787225,0.39581008,20808.0,20806.0,0.044]
[1673718787489,0.1,20807.0,20805.0,0.23735058]
[1673718787728,0.1,20807.0,20805.0,0.28235058]
[1673718788263,0.1,20807.0,20805.0,0.0588877]
[1673718788550,0.93893592,20807.0,20805.0,0.0138877]
[1673718788826,0.1,20807.0,20806.0,0.044]
[1673718789066,0.73244777,20807.0,20805.0,0.0138877]
[1673718789348,0.21961709,20806.0,20805.0,0.0588877]
[1673718789592,1.04374414,20806.0,20805.0,0.0588877]
[1673718789843,2.22725467,20806.0,20805.0,0.0588877]
[1673718790357,2.78791465,20806.0,20805.0,0.0588877]
[1673718790612,0.14151288,20804.0,20803.0,0.02045492]
[1673718790869,1.20191505,20804.0,20803.0,0.02045492]
[1673718791128,2.41899646,20804.0,20803.0,0.01545492]
[1673718791405,0.1,20803.0,20799.0,0.01888628]
[1673718791652,0.1,20803.0,20793.0,0.43014505]
[1673718791653,0.02542,20800.0,20793.0,0.43014505]
[1673718791899,0.64399025,20794.0,20793.0,0.14969432]
[1673718792170,1.80845336,20794.0,20793.0,0.14969432]
[1673718792436,0.14969,20793.0,20790.0,0.35858257]
[1673718792718,0.14969,20793.0,20791.0,0.28096114]
[1673718792719,0.09214,20792.0,20791.0,0.28096114]
[1673718792955,0.19844,20792.0,20791.0,0.28096114]
[1673718793304,0.64102127,20792.0,20790.0,0.35858257]
[1673718793479,0.1,20791.0,20790.0,0.35858257]
[1673718793749,3.57894802,20791.0,20784.0,0.14338358]
[1673718793998,0.1148,20785.0,20784.0,0.14338358]
[1673718794276,0.1148,20785.0,20784.0,0.12338358]
[1673718794277,1.36708674,20785.0,20784.0,0.12338358]
[1673718794563,1.36708674,20785.0,20782.0,0.64522663]
[1673718794564,0.1,20784.0,20782.0,0.64522663]
[1673718794818,0.548676,20784.0,20782.0,0.35845895]
[1673718795075,0.08364,20784.0,20783.0,0.02174112]
[1673718795376,1.91579524,20785.0,20783.0,0.02174112]
[1673718795617,2.03039524,20785.0,20783.0,0.02174112]
[1673718795892,0.09064,20784.0,20783.0,0.02174112]
[1673718796189,1.84534586,20789.0,20784.0,0.1]
[1673718796451,5.03252529,20792.0,20784.0,0.70028872]
[1673718796452,4.7878241,20792.0,20784.0,0.70028872]
[1673718796727,0.7459241,20792.0,20786.0,1.443279]
[1673718796978,3.93393572,20794.0,20791.0,0.84047]
[1673718796979,2.02586519,20794.0,20791.0,0.84047]
[1673718797320,2.02586519,20794.0,20793.0,1.3774]
[1673718797515,0.57751377,20795.0,20793.0,1.86722595]
[1673718797784,1.11974583,20796.0,20793.0,1.86722595]
[1673718797785,1.11974583,20796.0,20795.0,3.78496684]
[1673718798071,0.18314583,20796.0,20795.0,4.45289448]
[1673718798321,0.35490589,20797.0,20795.0,9.34763812]
[1673718798618,0.47912295,20801.0,20796.0,3.37454752]
[1673718798847,0.47912295,20801.0,20798.0,0.47720169]
[1673718799140,0.24350833,20803.0,20800.0,0.3437]
[1673718799392,0.24350833,20803.0,20802.0,0.3438]
[1673718799651,0.42524446,20809.0,20803.0,0.1]
[1673718799652,0.26675961,20804.0,20803.0,0.1]
[1673718799904,0.42524446,20809.0,20803.0,1.81834896]
[1673718800210,3.33563971,20805.0,20804.0,0.2296]
[1673718800466,3.33563971,20805.0,20804.0,1.03925183]
[1673718800467,3.33410601,20805.0,20804.0,1.03925183]
[1673718800738,3.33410601,20805.0,20804.0,1.33925183]
[1673718801003,3.34310601,20805.0,20804.0,2.81156684]
[1673718801364,3.34310601,20805.0,20804.0,2.33268832]
[1673718801365,3.05960011,20805.0,20804.0,2.33268832]
[1673718801638,3.05960011,20805.0,20804.0,4.20882279]
[1673718801639,2.63560011,20805.0,20804.0,4.20882279]
[1673718801822,1.02660011,20805.0,20804.0,4.80882279]
[1673718802054,0.93560011,20805.0,20804.0,4.30432279]
[1673718802288,0.93560011,20805.0,20804.0,3.50767096]
[1673718802517,0.93660011,20805.0,20804.0,4.24567096]
[1673718802735,0.92660011,20805.0,20804.0,4.92658413]
[1673718803192,0.92760011,20805.0,20804.0,7.19111818]
[1673718803420,0.92760011,20805.0,20804.0,4.53958413]
[1673718803997,0.92760011,20805.0,20804.0,4.78418377]
[1673718804257,0.92760011,20805.0,20804.0,3.54838244]
[1673718804509,1.15569037,20805.0,20804.0,3.54838244]
[1673718804775,1.15569037,20805.0,20804.0,3.64575541]
[1673718804776,0.92760011,20805.0,20804.0,3.64575541]
[1673718805051,0.92860011,20805.0,20804.0,5.97127281]
[1673718805336,0.92860011,20805.0,20804.0,8.55693693]
[1673718805337,0.92660011,20805.0,20804.0,8.55693693]
[1673718805569,0.92860011,20805.0,20804.0,4.86306818]
[1673718805831,0.92860011,20805.0,20804.0,6.28226507]
[1673718806083,0.92860011,20805.0,20804.0,8.00146831]
[1673718806356,0.92660011,20805.0,20804.0,7.56346831]
[1673718806629,0.92860011,20805.0,20804.0,8.00146831]
[1673718806907,0.92860011,20805.0,20804.0,7.86346831]
[1673718807166,0.92660011,20805.0,20804.0,8.00246831]
[1673718807445,0.92660011,20805.0,20804.0,4.86402125]
[1673718807967,0.92660011,20805.0,20804.0,5.85746812]
[1673718808236,0.92660011,20805.0,20804.0,5.36829515]
[1673718808526,0.92660011,20805.0,20804.0,2.66684149]
[1673718808801,1.16968729,20805.0,20804.0,2.32650233]
[1673718809294,0.92660011,20805.0,20804.0,2.32650233]
[1673718809557,0.92660011,20805.0,20804.0,2.46550233]
[1673718809558,0.92760011,20805.0,20804.0,2.46550233]
[1673718809808,0.92760011,20805.0,20804.0,2.412923]
[1673718809809,1.15550011,20805.0,20804.0,2.412923]
[1673718810067,1.15550011,20805.0,20804.0,2.65968736]
[1673718810068,1.25550011,20805.0,20804.0,2.65968736]
[1673718810387,0.1,20804.0,20803.0,1.98736465]
[1673718810592,0.4,20804.0,20803.0,3.40744848]
[1673718810864,0.4,20804.0,20803.0,2.69726601]
[1673718810865,0.961352,20804.0,20803.0,2.69726601]
[1673718811125,0.961352,20804.0,20803.0,3.12336984]
[1673718811388,0.961352,20804.0,20803.0,4.11721922]
[1673718811636,1.21537648,20804.0,20803.0,3.10287221]
[1673718811910,0.1,20803.0,20802.0,1.76190341]
[1673718812178,0.13445,20803.0,20802.0,1.76190341]
[1673718812449,0.36335,20803.0,20802.0,1.76190341]
[1673718813017,0.95445169,20803.0,20802.0,1.76190341]
[1673718813282,1.7896005,20803.0,20801.0,0.84247289]
[1673718813531,1.072521,20802.0,20801.0,0.84247289]
[1673718813806,2.84261564,20802.0,20801.0,0.84247289]
[1673718814616,2.84261564,20802.0,20801.0,0.21312355]
[1673718814618,0.1,20801.0,20800.0,0.62916207]
[1673718814871,0.98898864,20801.0,20797.0,4.2799749]
[1673718815156,0.96905,20798.0,20797.0,4.2799749]
[1673718815413,0.96905,20798.0,20794.0,0.49734888]
[1673718815414,0.1,20797.0,20794.0,0.14210029]
[1673718815739,0.720121,20797.0,20794.0,0.14210029]
[1673718815990,1.31195351,20797.0,20794.0,0.14210029]
[1673718816261,1.31195351,20797.0,20796.0,1.20620011]
[1673718816516,1.83720184,20797.0,20796.0,0.05030011]
[1673718816843,2.93528473,20797.0,20796.0,0.05330011]
[1673718817294,0.1,20796.0,20793.0,1.84514031]
[1673718817546,0.1,20794.0,20793.0,1.84514031]
[1673718817797,2.447992,20794.0,20793.0,1.84514031]
[1673718818057,3.102692,20794.0,20793.0,1.84514031]
[1673718818315,4.59015785,20794.0,20793.0,1.84514031]
[1673718818568,5.06426002,20794.0,20793.0,1.84514031]
[1673718818839,5.09126002,20794.0,20793.0,1.84514031]
[1673718819098,5.06426002,20794.0,20793.0,0.77035331]
[1673718819368,0.1,20793.0,20791.0,2.2709113]
[1673718819668,0.210976,20792.0,20791.0,2.2709113]
[1673718819860,1.172884,20792.0,20791.0,2.2709113]
[1673718820116,0.961908,20792.0,20791.0,2.2709113]
[1673718820621,1.855358,20792.0,20791.0,2.2709113]
[1673718820865,2.5926514,20792.0,20791.0,2.2709113]
[1673718821113,4.13215664,20792.0,20791.0,2.2709113]
[1673718821638,4.43215664,20792.0,20791.0,2.2709113]
[1673718821880,5.03919846,20792.0,20789.0,1.00251734]
[1673718822144,3.39103793,20790.0,20789.0,1.00251734]
[1673718822385,6.89366417,20790.0,20789.0,1.00251734]
[1673718822636,5.94572755,20790.0,20789.0,1.00251734]
[1673718822889,5.94572755,20790.0,20789.0,1.734e-05]
[1673718823142,0.1,20789.0,20788.0,0.47950791]
[1673718823392,2.95860286,20789.0,20788.0,0.47950791]
[1673718823689,3.43962586,20789.0,20788.0,0.47950791]
[1673718824222,4.04042961,20789.0,20788.0,0.47950791]
[1673718824902,5.01893751,20789.0,20785.0,0.21324467]
[1673718824903,0.1,20788.0,20786.0,1.095e-05]
[1673718825277,2.01358827,20787.0,20786.0,1.095e-05]
[1673718825487,5.96621401,20787.0,20786.0,1.095e-05]
[1673718825741,7.62404746,20787.0,20786.0,1.095e-05]
[1673718825997,7.8836783,20787.0,20786.0,1.095e-05]
[1673718826239,7.8936783,20787.0,20786.0,1.095e-05]
[1673718826483,6e-05,20785.0,20783.0,0.44822078]
[1673718826732,2.61273369,20784.0,20783.0,0.44822078]
[1673718826977,0.1,20783.0,20781.0,1.28857448]
[1673718827236,0.346071,20782.0,20781.0,1.28857448]
[1673718827500,2.089626,20782.0,20781.0,1.28857448]
[1673718827767,3.07336695,20782.0,20781.0,1.28857448]
[1673718828034,3.34369284,20782.0,20781.0,1.28857448]
[1673718828265,3.34369284,20782.0,20772.0,0.5852994]
[1673718828266,0.1,20781.0,20772.0,0.5852994]
[1673718828507,2.04308182,20780.0,20779.0,3.47875827]
[1673718828748,2.04308182,20780.0,20779.0,1.74935727]
[1673718828749,5.00674747,20780.0,20779.0,1.74935727]
[1673718828997,6.53960137,20780.0,20779.0,0.43007227]
[1673718829247,6.0531428,20780.0,20779.0,0.43007227]
[1673718829502,0.1,20779.0,20772.0,0.28448003]
[1673718829741,2.9580311,20778.0,20774.0,0.02308634]
[1673718830048,4.54301167,20778.0,20774.0,0.02308634]